Cogmind - Beta 15 @@@ ROGUE MODE // 2025.07.28 @ 13:09:36 Player: Temerity Result: Destroyed by Y-45 Defender with Beam Rifle Performance ------------- Evolutions (1) 500 Regions Visited (3) 600 Robots Destroyed (27) 135 Value Destroyed (282) 282 Prototype IDs (2) 40 Alien Tech Used (0) 0 Bonus (0) 0 TOTAL SCORE: 1557 Bonus ------- None Cogmind --------- Core Integrity 0/400 Matter 258/300 Energy 100/100 System Corruption 0% Temperature Cool (9) Movement Core (200) Ox3 Location -9/Materials Parts ------- > --- POWER (1) -------- (None) > --- PROPULSION (3) --- (None) > --- UTILITY (3) ------ Medium Storage Unit Terrain Scan Processor > --- WEAPON (2) ------- (None) > --- INVENTORY (10) --- Light Ion Engine Aluminum Leg Aluminum Leg Large Storage Unit Structural Scanner Terrain Scanner Peak State ------------ > --- POWER ------------ Ion Engine > --- PROPULSION ------- Wheel Wheel Compact Wheel > --- UTILITY ---------- Medium Storage Unit Terrain Scanner Terrain Scan Processor > --- WEAPON ----------- Medium Laser Rocket Launcher > --- INVENTORY -------- Ion Engine Light Ion Engine Aluminum Leg Aluminum Leg Compact Wheel Large Storage Unit Structural Scanner Seismic Detector Small Laser Light Assault Rifle [Rating: 12] Favorites ----------- Power Ion Engine Engine Ion Engine Propulsion Aluminum Leg Leg Aluminum Leg Wheel Wheel Utility Medium Storage Unit Device Seismic Detector Storage Medium Storage Unit Processor Terrain Scan Processor Weapon Medium Laser Energy Gun Medium Laser Ballistic Gun Light Assault Rifle Launcher Rocket Launcher Build | -11 -10 -10 -9 ------- Run | Yrd Mat Min Mat Slots Evolved 2 | . . . 2 Power . | . . . . Propulsion 1 | . . . 1 Utility 1 | . . . 1 Weapon . | . . . . Parts Attached 17 | 7 1 1 8 Power 2 | 1 . . 1 Engine 2 | 1 . . 1 Core . | . . . . Reactor . | . . . . Propulsion 6 | 2 . . 4 Treads . | . . . . Leg 2 | 2 . . . Wheel 4 | . . . 4 Hover . | . . . . Flight . | . . . . Utility 5 | 2 1 . 2 Device 2 | 1 . . 1 Storage 2 | 1 1 . . Processor 1 | . . . 1 Hackware . | . . . . Protection . | . . . . Artifact . | . . . . Weapon 4 | 2 . 1 1 Energy Gun 2 | 2 . . . Energy Cannon . | . . . . Ballistic Gun 1 | . . . 1 Ballistic Cannon . | . . . . Launcher 1 | . . 1 . Special Weapon . | . . . . Impact Weapon . | . . . . Slashing Weapon . | . . . . Piercing Weapon . | . . . . Special Melee Weapon . | . . . . Unidentified Prototypes . | . . . . Parts Lost 12 | . . . 12 Power 2 | . . . 2 Propulsion 5 | . . . 5 Utility 1 | . . . 1 Weapon 4 | . . . 4 Highest Loss Streak 6 | . . . 6 To Critical Strikes . | . . . . Average Backups 8 | 3 7 9 8 Power 1 | 1 1 2 1 Propulsion 2 | 1 2 2 2 Utility 2 | . 2 4 3 Weapon 1 | . 1 1 1 Tool/Special . | . . . . Unused Backups 7 | 1 2 . 4 Power 2 | . 1 . 1 Propulsion 2 | 1 1 . . Utility 3 | . . . 3 Weapon . | . . . . Tool/Special . | . . . . Average Slot Usage (%) 92 | . 100 100 73 Engine 12 | . 14 14 9 Leg 21 | . 28 28 6 Wheel 4 | . . . 14 Device 11 | . 14 14 7 Storage 13 | . 14 14 11 Processor 2 | . . . 9 Energy Gun 17 | . 28 17 8 Launcher 7 | . . 10 7 Peak Build Rating 12 | 7 8 9 12 Average Rating 8 | 5 7 8 8 On Entrance 6 | . 7 8 9 Naked Turns . | . . . . Heaviest Build 23 | 14 19 22 23 Greatest Support 36 | 20 20 20 36 Greatest Overweight (x) 4 | . . 1 4 Average Overweight (x) . | . . . . Largest Inventory Capacity 10 | 8 10 10 10 Average Capacity 9 | 7 8 10 10 Most Carried 10 | 6 9 10 10 Average Carried 8 | 3 8 9 8 Final Capacity 10 | 8 10 10 10 Final Carried 10 | 6 9 10 6 Class Distribution -------------------- 88% | Mutant 11% | Scavenger-Mutant Dominant Class ---------------- Mutant | -10/Materials Mutant | -10/Mines Mutant | -9/Materials Resources | -11 -10 -10 -9 ----------- Run | Yrd Mat Min Mat Matter Collected 348 | 270 10 7 61 Remotely . | . . . . Salvage Created 662 | 206 114 129 213 Parts 56 | 13 17 8 18 Haulers Intercepted . | . . . . Recyclers Shooed 2 | . 1 1 . Parts Field Recycled . | . . . . Retrieved Matter . | . . . . Parts Self-Destructed . | . . . . Prevented . | . . . . Kills | -11 -10 -10 -9 ------- Run | Yrd Mat Min Mat Combat Hostiles Destroyed 12 | . 3 3 6 Guns 11 | . 3 3 5 AOE 1 | . . . 1 Classes Destroyed 7 | 3 2 . 2 Worker 4 | 2 1 1 . Builder 5 | . 3 . 2 Tunneler 4 | 4 . . . Recycler 2 | 1 . 1 . Swarmer 9 | . 3 3 3 Grunt 2 | . . . 2 Sentry 1 | . . . 1 Best Kill Streak 6 | 4 6 3 4 Combat Bots Only 3 | . 3 3 2 Max Kills in Single Turn 1 | 1 1 1 1 Gunslinging . | . . . . Exploded 1 | . . . 1 Melee . | . . . . Uniques/NPCs Destroyed . | . . . . Combat | -11 -10 -10 -9 -------- Run | Yrd Mat Min Mat Hostile Shots Fired 147 | . 26 14 107 Missed 40 | . 9 4 27 Hits 107 | . 17 10 80 Projectile 107 | . 17 10 80 Critical Strikes 2 | . . . 2 Damage Taken 1303 | . 148 83 1072 Core 455 | . 55 . 400 Absorbed by Shields . | . . . . Core Remaining (%) 89 | 100 . 78 . Volleys Fired 108 | 19 24 15 50 Largest 2 | 2 2 2 2 Hottest 90 | 90 90 90 83 Shots Fired 165 | 36 48 30 51 Gun 164 | 36 48 30 50 Cannon . | . . . . Launcher 1 | . . . 1 Special . | . . . . Kinetic 17 | . . . 17 Thermal 147 | 36 48 30 33 Explosive 1 | . . . 1 Electromagnetic . | . . . . Robot Hit Streak 11 | 8 4 6 11 Robot Miss Streak 5 | 3 5 5 2 Penetration Max . | . . . . Secondary Targets 1 | . 1 . . Max Gunslinging Chain 1 | . 1 . . Shots Hit Robots 85 | 20 16 15 34 Core Hits 34 | 8 7 7 12 Critical Kills 1 | . . . 1 Critical Parts Destroyed . | . . . . Critical Strikes 6 | 1 1 1 3 Burn 5 | 1 1 1 2 Destroy 1 | . . . 1 Melee Attacks . | . . . . Impact . | . . . . Slashing . | . . . . Piercing . | . . . . Sneak Attacks . | . . . . Combat Hostiles . | . . . . Follow-up Attacks . | . . . . Damage Inflicted 1113 | 274 209 191 439 Guns 1010 | 274 209 181 346 Cannons . | . . . . Explosions 93 | . . . 93 Melee . | . . . . Ramming 10 | . . 10 . Kinetic 118 | . . . 118 Thermal 892 | 274 209 181 228 Explosive 93 | . . . 93 Electromagnetic . | . . . . Impact . | . . . . Slashing . | . . . . Piercing . | . . . . Highest Corruption . | . . . . Average Corruption . | . . . . Corruption Purged . | . . . . Corruption Blocked . | . . . . Overload Shots . | . . . . Overflow Damage . | . . . . Projectiles . | . . . . Explosions . | . . . . Melee . | . . . . Knockbacks 1 | . . 1 . Impact 1 | . . 1 . Kinetic . | . . . . Secondary . | . . . . Self-Inflicted Damage 45 | . . . 45 Shots 1 | . . . 1 Rammed . | . . . . Targets Rammed 1 | . . 1 . Kicked 1 | . . 1 . Crushed . | . . . . Highest Temperature 270 | 270 240 222 75 Average Temperature 76 | 86 83 99 20 Received Heat Transfer 453 | . 24 . 429 Siege Activations . | . . . . Martial Activations . | . . . . Shielding Activations . | . . . . Robots Disrupted . | . . . . Combat Hostiles . | . . . . Robots Corrupted . | . . . . Combat Hostiles . | . . . . Parts Fried . | . . . . Impact Corruptions . | . . . . Robots Melted . | . . . . Combat Hostiles . | . . . . Parts Melted 7 | 2 . 1 4 Heat Transferred 2725 | 805 620 545 755 Parts Sabotaged . | . . . . Parts Stolen . | . . . . Parts Stripped . | . . . . Power Chain Reactions . | . . . . Alert | -11 -10 -10 -9 ------- Run | Yrd Mat Min Mat Maximum Alert Level . | . . . . Low Security (%) 100 | 100 100 100 100 Level 1 . | . . . . Level 2 . | . . . . Level 3 . | . . . . Level 4 . | . . . . Level 5 . | . . . . High Security . | . . . . Max Security . | . . . . Peak Influence 100 | 15 65 63 100 Initial 13 | . 3 13 . Average 22 | 2 22 11 51 Influence Increases 440 | 35 95 80 230 Destroy 0b10 Robot/C 240 | . 60 60 120 Destroy 0b10 Robot/NC 75 | 35 20 10 10 Destroy Leader 50 | . 10 10 30 Successful Hack 37 | . 5 . 32 Disable Machine 15 | . . . 15 Destroy Structure 8 | . . . 8 Lose Combat Pursuer 15 | . . . 15 Influence Decreases 440 | 30 65 115 230 Entered New Map 24 | . 2 22 . Time Decay 316 | 30 63 93 130 Lost Part 100 | . . . 100 Squads Dispatched 3 | . 2 . 1 Investigation 2 | . 1 . 1 Extermination . | . . . . Reinforcement 1 | . 1 . . Assault . | . . . . Garrison . | . . . . Intercept . | . . . . Searches Triggered . | . . . . Construction Impeded . | . . . . Haulers Reinforced . | . . . . Active Scanning Responses . | . . . . Cargo Convoy Interrupts . | . . . . Stealth | -11 -10 -10 -9 --------- Run | Yrd Mat Min Mat Distress Signals 1 | . . . 1 Communications Jammed . | . . . . Distress Signals . | . . . . Times Spotted 25 | . 8 3 14 Peak Tracking Total 5 | . 4 3 5 Tactical Retreats 1 | . . . 1 Traps | -11 -10 -10 -9 ------- Run | Yrd Mat Min Mat Traps Triggered . | . . . . Indirectly . | . . . . Trap Hack Attempts . | . . . . Triggered . | . . . . Disarmed . | . . . . Reprogrammed . | . . . . Reused . | . . . . Traps Extracted . | . . . . Installed . | . . . . Triggered . | . . . . Machines | -11 -10 -10 -9 ---------- Run | Yrd Mat Min Mat Machines Disabled 1 | . . . 1 Max in Single Turn 1 | . . . 1 Machines Repaired . | . . . . Machines Dismantled . | . . . . Machines Sabotaged . | . . . . Overloaded Fab Kills . | . . . . Hacking | -11 -10 -10 -9 --------- Run | Yrd Mat Min Mat Machines Accessed 4 | . 2 . 2 Terminals 3 | . 2 . 1 Fabricators . | . . . . Repair Stations . | . . . . Recycling Units . | . . . . Scanalyzers 1 | . . . 1 Garrison Access . | . . . . Total Hacks 19 | . 8 . 11 Successful 12 | . 5 . 7 Failed 7 | . 3 . 4 Catastrophic 2 | . 1 . 1 Database Lockouts . | . . . . Manual . | . . . . Terminals 16 | . 8 . 8 Fabricators . | . . . . Repair Stations . | . . . . Recycling Units . | . . . . Scanalyzers 3 | . . . 3 Garrison Access . | . . . . Terminal Hacks 10 | . 5 . 5 Record 5 | . 1 . 4 Prototype ID Bank 1 | . 1 . . Emergency Access Points 1 | . . . 1 Terminal Index 1 | . 1 . . Alert Level 1 | . 1 . . Dispatch Records 1 | . 1 . . Fabricator Hacks . | . . . . Repair Station Hacks . | . . . . Recycling Unit Hacks . | . . . . Scanalyzer 2 | . . . 2 Insert Component 1 | . . . 1 Analyze 1 | . . . 1 Garrison Access Hacks . | . . . . Unauthorized Hacks . | . . . . Terminals . | . . . . Fabricators . | . . . . Repair Stations . | . . . . Recycling Units . | . . . . Scanalyzers . | . . . . Garrison Access . | . . . . Data Cores Recovered . | . . . . Used . | . . . . Hacking Detections 4 | . 2 . 2 Full Trace Events 2 | . 1 . 1 Feedback Events . | . . . . Feedback Blocked . | . . . . Robot Schematics Acquired . | . . . . Robots Built . | . . . . Authchips . | . . . . Time . | . . . . Total Robot Build Rating . | . . . . Part Schematics Acquired 1 | . . . 1 Parts Built . | . . . . Authchips . | . . . . Time . | . . . . Total Part Build Rating . | . . . . Parts Repaired . | . . . . Time . | . . . . Parts Recycled . | . . . . Recycled Matter . | . . . . Retrieved Matter . | . . . . Retrieved Components . | . . . . Parts Scanalyzed 1 | . . . 1 Part Schematics Acquired 1 | . . . 1 Parts Damaged . | . . . . Bothacking | -11 -10 -10 -9 ------------ Run | Yrd Mat Min Mat Used RIF Installer . | . . . . Robots Hacked . | . . . . Non-combat . | . . . . Combat . | . . . . Robot Hacks Applied . | . . . . Relay Couplers Released . | . . . . Fabnet Peak Effective % . | . . . . Robots Rewired . | . . . . Allies Hacked . | . . . . Hacks Repelled . | . . . . Allies | -11 -10 -10 -9 -------- Run | Yrd Mat Min Mat Total Allies . | . . . . Largest Group . | . . . . Highest-Rated Group . | . . . . Highest-Rated Ally . | . . . . Total Orders . | . . . . Ally Attacks . | . . . . Total Damage . | . . . . Kills . | . . . . Allies Corrupted . | . . . . Allies Melted . | . . . . Intel | -11 -10 -10 -9 ------- Run | Yrd Mat Min Mat Active Infowar (turns) 916 | 11 224 546 135 Terrain 135 | . . . 135 Seismic 826 | 11 224 546 45 Robot Analysis Total . | . . . . Derelict Logs Recovered 1 | . . 1 . Drone Launches . | . . . . Drone Recoveries . | . . . . Exploration | -11 -10 -10 -9 ------------- Run | Yrd Mat Min Mat Turns Passed 1229 | 144 224 546 315 Spaces Moved 651 | 64 120 288 179 Core 19 | 13 . . 6 Treads . | . . . . Legs 490 | 51 120 288 31 Wheels 142 | . . . 142 Hover . | . . . . Flight . | . . . . Fastest Speed 50 | 50 120 120 86 Average Speed 138 | 105 120 171 111 Slowest Speed 250 | 120 120 190 250 Overloaded Moves . | . . . . Propulsion Burnouts . | . . . . Robots Hopped . | . . . . Potential Cave-ins . | . . . . Cave-ins Triggered . | . . . . Exploration Rate (%) 29 | 5 27 72 14 Regions Visited 3 Branch Regions 1 Pre-discovered Areas 2 | . . 2 . Known Exits Taken . | . . . . Unknown Exits Taken 3 | 1 1 1 . Scrap Searched . | . . . . Spaces Dug . | . . . . Terrain Destroyed 7 | . . . 7 Melee . | . . . . Projectile . | . . . . AOE 7 | . . . 7 Terrain Rammed . | . . . . Walls Destroyed . | . . . . Machines Disabled . | . . . . Actions | -11 -10 -10 -9 --------- Run | Yrd Mat Min Mat Total 814 | 104 153 310 247 Wait 5 | . . 5 . Move 648 | 63 119 287 179 Hop . | . . . . Pick Up 26 | 14 6 1 5 Fast Attach . | . . . . Attach 14 | 7 . . 7 Detach . | . . . . Swap 6 | . 1 1 4 Drop 6 | 1 3 . 2 Fire 108 | 19 24 15 50 Melee . | . . . . Ram . | . . . . Kick 1 | . . 1 . Crush . | . . . . Escape Stasis . | . . . . Rewire . | . . . . Trap . | . . . . Miscellaneous . | . . . . Route ------- -11/Scrapyard -10/Materials -10/Mines -9/Materials History --------- Turn | Location | Event 5 | -11/Scrapyard | Discovered new exit (range 15) 145 | -11/Scrapyard | Entered Materials 309 | -10/Materials | Build established: Mutant 362 | -10/Materials | Discovered new exit (range 7) 369 | -10/Materials | Entered Mines 370 | -10/Mines | Learned location of Storage (-9) 510 | -10/Mines | Received a Rocket Launcher from a helpful Derelict 831 | -10/Mines | Learned location of Zion (-7) 899 | -10/Mines | Discovered new exit (range 9) 915 | -10/Mines | Entered Materials 915 | -9/Materials | Evolved 2 slots: Propulsion x1, Utility x1 1154 | -9/Materials | Lost 6 parts (1p3n2w) 1164 | -9/Materials | Core integrity fell below 50% 1204 | -9/Materials | Core integrity fell below 20% 1230 | -9/Materials | Destroyed by Y-45 Defender with Beam Rifle Last Messages --------------- Med. Laser destroyed. Wheel destroyed. Rocket Launcher destroyed. Ion Engine destroyed. Com. Wheel destroyed. Sml. Laser destroyed. G-34 Mercenary heat spikes uncontrollably. G-34 Mercenary overheating. Aluminum Leg melted. Sml. Laser melted. G-34 Mercenary destroyed. G-34 Mercenary suffers critical hit (Destroy). G-34 Mercenary destroyed. Critical hit (Burn: +37). R-06 Scavenger destroyed. Lgt. Assault Rifle destroyed. Acquired Aluminum Leg. Aluminum Leg destroyed. Ion Engine destroyed. K-01 Serf collects debris. Map ----- +----------------------------------------------------+ | ??????????????????????????????????????????????? | | ??????????????????????????????????????????????? | | ??????????????????????????????????????????????? | | ??????????????????????????????????????????????? | | ??????????????????????????????????????????????? | | #?????????????????????????????????????????????? | | ??????????????????????????????????????????????? | | ######????????????????????????????????????????? | | """ #????#?????????????? #???????????????????? | | S"" #????# ???????????? ????????????????????? | | "" #????? ####+##????# #???????????????????? | | #?????? ##### ????????????????????? | | #??????? ??????????????????????? | | "" #???????# ???????????????????????? | | "" #? ?????# #????????????????????????? | | "" #???#???# #????????????????????????? | | #???????# #????????????????????????? | | ###########??# #######??????????????????? | | #### * +??????????????????? | | =%%#???????????????????????? | | ##### ###/#########????????????????? | | ###########???# ##=k!= #????????????????? | | #?#??????# ##%""" """ Y#????????????????? | | """ #????????# ##!""" """ #????????????????? | | """ #????????# ##!""" """ #????????????????? | | """ #?????#?? # Y@s #????????????????? | | #?#?????? ############????????????????? | | #??????#? " ???????????????????????????? | | #???????# #???????????????????????????? | | #?##??####/###???????????????????????????? | | #??#??# #??????????????????????????? | | ####+#?#???# """ #??????????????????????????? | | ???# #?????# """ ##?????????????????????????? | | ?#?# #???### """ #?????????????????????????? | | ??## #??#??# #??????????????????????????? | | ???# #?????# ***#??????????????????????????? | | #??# #######[ ** #??????????????????????????? | | ##?# =+%= ** #??????????????????????????? | | ???#########* #??????????????????????????? | | ???????????# #??????????????????????????? | | ?#?#??#????# #??????????????????????????? | | ????#??????#########??????????????????????????? | | ??????????????????????????????????????????????? | | ??????????????????????????????????????????????? | | ??????????????????????????????????????????????? | | ??#?#?????????????????????????????????????????? | | ?????????#????????????????????????????????????? | | ????????? ????????????????????????????????????? | | ???????? ???? ????????????????????????????????? | | ?????????????????????????????????????????????? | +----------------------------------------------------+ Best States ------------- Heat Dissipation 28 Energy Generation 10 Energy Capacity 250 Matter Stores 300 Matter Capacity 300 Sight Range 16 Terrain Scan Range 14 Terrain Scan Density 85 Evasion (%) 55 Item Schematics ----------------- Structural Scanner | -9/Materials | Scanalyzed Robot Schematics ------------------ None Fabricated ------------ Nothing Repaired ---------- Nothing Alien Tech Used ----------------- None Achievements -------------- None Challenges ------------ None Game ------ Seed DiametricSwordDriver Manual? 0 Play Time 00:21:14 Cumulative 13.9 hours Start 2025.07.28 @ 12:51:43 End 2025.07.28 @ 13:09:36 Sessions 1 Manual Loads 0 Difficulty Rogue Special Mode None Game No. 15 Rogue 15 Adventurer 0 Explorer 0 Win Type - Total 0 Types 0/0/0/0/0/0/0/0/0/0 Lore% 2 Gallery% 11 Achievement% 10 Wizard Run 0 Options --------- Layout 1 ASCII 0 Keyboard 0 Movement Mouse Keybinds 0 Fullscreen 1 Font 18/SmallcapsGlow Map View 51x43 Zoom Use 0% Tactical HUD 0 Map Filters NONE Filters NONE Steam 1 RUN: d1a94f27-6edb-46c2-8d1d-025f7b71dd85